Cogmind - Beta 13 @@@ ROGUE MODE // 2024.04.27 @ 21:34:30 Player: Bace Troncons Result: Destroyed by G-47 Trooper with Particle Gun Performance ------------- Evolutions (2) 1000 Regions Visited (5) 1000 Robots Destroyed (30) 150 Value Destroyed (870) 870 Prototype IDs (27) 540 Alien Tech Used (0) 0 Bonus (300) 300 TOTAL SCORE: 3860 Bonus ------- Aligned with FarCom 300 Cogmind --------- Core Integrity 0/550 Matter 240/300 Energy 160/160 System Corruption 0% Temperature Cool (9) Movement Walking (190) Ox1 Location -8/Materials Parts ------- > --- POWER (1) -------- Light Nuclear Core > --- PROPULSION (2) --- Aluminum Leg Aluminum Leg > --- UTILITY (6) ------ Large Storage Unit Advanced Visual Processing Unit 0b10 Alert Chip Hacking Suite > --- WEAPON (2) ------- Scythe > --- INVENTORY (15) --- Light Assault Rifle Datajack Peak State ------------ > --- POWER ------------ Nuclear Core > --- PROPULSION ------- Aluminum Leg Aluminum Leg > --- UTILITY ---------- Small Storage Unit Advanced Visual Processing Unit Seismic Detector 0b10 Alert Chip Melee Analysis Suite Hacking Suite > --- WEAPON ----------- Heavy Assault Rifle Heavy Assault Rifle > --- INVENTORY -------- Light Nuclear Core Component Analysis Suite Light Assault Rifle Heavy Assault Rifle Datajack [Rating: 27] Favorites ----------- Power Light Nuclear Core Engine Ion Engine Power Core Light Nuclear Core Propulsion Aluminum Leg Treads Light Treads Leg Aluminum Leg Utility Small Storage Unit Device Trap Extractor Storage Small Storage Unit Processor 0b10 Alert Chip Hackware Hacking Suite Weapon Heavy Assault Rifle Energy Gun EM Pulse Gun Ballistic Gun Heavy Assault Rifle Slashing Weapon Scythe Build | -11 -10 -10 -10 -9 -8 ------- Run | Yrd Mat Min Exi Min Mat Slots Evolved 4 | . . . . . 4 Power . | . . . . . . Propulsion . | . . . . . . Utility 4 | . . . . . 4 Weapon . | . . . . . . Parts Attached 39 | 7 4 6 . . 22 Power 6 | 1 . 2 . . 3 Engine 2 | 1 . 1 . . . Core 4 | . . 1 . . 3 Reactor . | . . . . . . Propulsion 11 | 3 . 2 . . 6 Treads 4 | 2 . . . . 2 Leg 7 | 1 . 2 . . 4 Wheel . | . . . . . . Hover . | . . . . . . Flight . | . . . . . . Utility 10 | 1 2 . . . 7 Device 2 | . 1 . . . 1 Storage 2 | 1 . . . . 1 Processor 4 | . . . . . 4 Hackware 2 | . 1 . . . 1 Protection . | . . . . . . Artifact . | . . . . . . Weapon 12 | 2 2 2 . . 6 Energy Gun 2 | 2 . . . . . Energy Cannon . | . . . . . . Ballistic Gun 9 | . 2 2 . . 5 Ballistic Cannon . | . . . . . . Launcher . | . . . . . . Special Weapon . | . . . . . . Impact Weapon . | . . . . . . Slashing Weapon 1 | . . . . . 1 Piercing Weapon . | . . . . . . Special Melee Weapon . | . . . . . . Unidentified Prototypes . | . . . . . . Parts Lost 16 | . . 4 . . 12 Power 2 | . . . . . 2 Propulsion 6 | . . 2 . . 4 Utility 3 | . . . . . 3 Weapon 5 | . . 2 . . 3 Highest Loss Streak 5 | . . 3 . . 5 To Critical Strikes . | . . . . . . Average Slot Usage (%) 95 | . 96 97 100 100 89 Engine 4 | . 14 5 . . . Core 8 | . . 8 14 14 8 Treads 12 | . 28 19 . . 2 Leg 11 | . . 5 28 28 14 Device 2 | . 10 . . . 3 Storage 12 | . 14 14 14 14 9 Processor 6 | . . . . . 23 Hackware 10 | . 1 14 14 14 10 Ballistic Gun 23 | . 23 27 28 28 16 Naked Turns . | . . . . . . Heaviest Build 31 | 14 18 16 16 16 31 Greatest Support 40 | 40 40 40 20 20 20 Greatest Overweight (x) 9 | 3 . 5 . . 9 Average Overweight (x) . | . . . . . . Largest Inventory Capacity 15 | 8 8 8 8 8 15 Average Capacity 8 | 7 8 8 8 8 9 Most Carried 8 | 4 8 8 5 6 8 Average Carried 5 | 3 5 7 4 5 5 Final Capacity 15 | 8 8 8 8 8 15 Final Carried 8 | 3 8 5 5 6 2 Class Distribution -------------------- 72% | Mutant 13% | Scavenger-Skirmisher 9% | Skirmisher Dominant Class ---------------- Mutant | -10/Materials Mutant | -10/Mines Mutant | -10/Exiles Mutant | -9/Mines Scavenger-Skirmisher | -8/Materials Resources | -11 -10 -10 -10 -9 -8 ----------- Run | Yrd Mat Min Exi Min Mat Matter Collected 1016 | 265 113 243 . 30 365 Remotely . | . . . . . . Salvage Created 1072 | . 164 258 . 116 534 Parts 65 | . 11 23 . 7 24 Haulers Intercepted 1 | . . . . . 1 Recyclers Shooed . | . . . . . . Parts Field Recycled . | . . . . . . Retrieved Matter . | . . . . . . Parts Self-Destructed . | . . . . . . Prevented . | . . . . . . Kills | -11 -10 -10 -10 -9 -8 ------- Run | Yrd Mat Min Exi Min Mat Combat Hostiles Destroyed 28 | . 4 12 . 3 9 Melee 2 | . . . . . 2 Guns 26 | . 4 12 . 3 7 Classes Destroyed 5 | . 2 1 . . 2 Hauler 1 | . . . . . 1 Operator 1 | . 1 . . . . Swarmer 10 | . . 10 . . . Grunt 15 | . 4 2 . 3 6 Sentry 3 | . . . . . 3 Best Kill Streak 3 | . 3 3 . 3 2 Combat Bots Only 3 | . 3 3 . 3 2 Max Kills in Single Turn 2 | . 2 1 . 1 1 Gunslinging 1 | . 1 . . . . Exploded . | . . . . . . Melee 1 | . . . . . 1 Uniques/NPCs Destroyed . | . . . . . . Combat | -11 -10 -10 -10 -9 -8 -------- Run | Yrd Mat Min Exi Min Mat Hostile Shots Fired 266 | . 26 85 . 8 147 Missed 58 | . 8 25 . 4 21 Damage Taken 2850 | . 223 540 . 58 2029 Core 690 | . 37 93 . . 560 Absorbed by Shields . | . . . . . . Regen/Repaired (Parts) 97 | . . . . . 97 Core Remaining (%) 74 | 100 . . . 48 . Volleys Fired 100 | . 15 31 . 5 49 Largest 2 | . 2 2 . 2 2 Hottest 46 | . 46 46 . 46 46 Shots Fired 195 | . 30 58 . 10 97 Gun 195 | . 30 58 . 10 97 Cannon . | . . . . . . Launcher . | . . . . . . Special . | . . . . . . Kinetic 195 | . 30 58 . 10 97 Thermal . | . . . . . . Explosive . | . . . . . . Electromagnetic . | . . . . . . Robot Hit Streak 15 | . 13 8 . 10 15 Robot Miss Streak 6 | . 4 4 . . 6 Penetration Max . | . . . . . . Secondary Targets 5 | . 1 2 . 2 . Max Gunslinging Chain 1 | . 1 1 . 1 . Shots Hit Robots 128 | . 21 30 . 9 68 Core Hits 54 | . 9 15 . 5 25 Critical Kills . | . . . . . . Critical Parts Destroyed . | . . . . . . Critical Strikes 1 | . . . . . 1 Sever 1 | . . . . . 1 Melee Attacks 4 | . . . . . 4 Impact . | . . . . . . Slashing 4 | . . . . . 4 Piercing . | . . . . . . Sneak Attacks . | . . . . . . Combat Hostiles . | . . . . . . Follow-up Attacks . | . . . . . . Damage Inflicted 1973 | . 304 491 . 130 1048 Guns 1849 | . 304 491 . 130 924 Cannons . | . . . . . . Explosions . | . . . . . . Melee 124 | . . . . . 124 Ramming . | . . . . . . Kinetic 1849 | . 304 491 . 130 924 Thermal . | . . . . . . Explosive . | . . . . . . Electromagnetic . | . . . . . . Impact . | . . . . . . Slashing 124 | . . . . . 124 Piercing . | . . . . . . Highest Corruption . | . . . . . . Average Corruption . | . . . . . . Corruption Purged . | . . . . . . Corruption Blocked . | . . . . . . Overload Shots . | . . . . . . Overflow Damage . | . . . . . . Projectiles . | . . . . . . Explosions . | . . . . . . Melee . | . . . . . . Knockbacks . | . . . . . . Impact . | . . . . . . Kinetic . | . . . . . . Secondary . | . . . . . . Self-Inflicted Damage . | . . . . . . Shots . | . . . . . . Rammed 1 | . . 1 . . . Targets Rammed 1 | . . 1 . . . Kicked . | . . . . . . Crushed . | . . . . . . Highest Temperature 24 | . 9 15 . 6 24 Average Temperature 6 | . 3 6 . 4 9 Received Heat Transfer 1203 | . 126 66 . 30 981 Siege Activations . | . . . . . . Robots Corrupted . | . . . . . . Combat Hostiles . | . . . . . . Parts Fried . | . . . . . . Impact Corruptions . | . . . . . . Robots Melted . | . . . . . . Combat Hostiles . | . . . . . . Parts Melted . | . . . . . . Heat Transferred . | . . . . . . Parts Sabotaged . | . . . . . . Parts Stolen . | . . . . . . Parts Stripped . | . . . . . . Power Chain Reactions . | . . . . . . Alert | -11 -10 -10 -10 -9 -8 ------- Run | Yrd Mat Min Exi Min Mat Peak Influence 192 | . 124 192 . 70 128 Initial 27 | . . 7 . . 27 Average 42 | . 32 46 . 67 41 Maximum Alert Level . | . . . . . . Low Security (%) 100 | 100 100 100 . 100 100 Level 1 . | . . . . . . Level 2 . | . . . . . . Level 3 . | . . . . . . Level 4 . | . . . . . . Level 5 . | . . . . . . High Security . | . . . . . . Max Security . | . . . . . . Squads Dispatched 2 | . 1 . . . 1 Investigation . | . . . . . . Extermination . | . . . . . . Reinforcement 2 | . 1 . . . 1 Assault . | . . . . . . Garrison . | . . . . . . Intercept . | . . . . . . Searches Triggered . | . . . . . . Construction Impeded . | . . . . . . Haulers Reinforced . | . . . . . . Active Scanning Responses . | . . . . . . Cargo Convoy Interrupts . | . . . . . . Stealth | -11 -10 -10 -10 -9 -8 --------- Run | Yrd Mat Min Exi Min Mat Distress Signals 3 | . 1 . . . 2 Communications Jammed . | . . . . . . Distress Signals . | . . . . . . Times Spotted 50 | . 11 15 . 2 22 Peak Tracking Total 8 | . 4 3 . 2 8 Tactical Retreats 1 | . . 1 . . . Traps | -11 -10 -10 -10 -9 -8 ------- Run | Yrd Mat Min Exi Min Mat Traps Triggered . | . . . . . . Indirectly . | . . . . . . Trap Hack Attempts . | . . . . . . Triggered . | . . . . . . Disarmed . | . . . . . . Reprogrammed . | . . . . . . Reused . | . . . . . . Traps Extracted . | . . . . . . Installed . | . . . . . . Triggered . | . . . . . . Machines | -11 -10 -10 -10 -9 -8 ---------- Run | Yrd Mat Min Exi Min Mat Machines Disabled . | . . . . . . Max in Single Turn . | . . . . . . Machines Repaired . | . . . . . . Machines Dismantled . | . . . . . . Machines Sabotaged . | . . . . . . Overloaded Fab Kills . | . . . . . . Hacking | -11 -10 -10 -10 -9 -8 --------- Run | Yrd Mat Min Exi Min Mat Machines Accessed 6 | . 2 . 2 . 2 Terminals 3 | . 2 . . . 1 Fabricators . | . . . . . . Repair Stations 1 | . . . . . 1 Recycling Units . | . . . . . . Scanalyzers . | . . . . . . Garrison Access . | . . . . . . Total Hacks 12 | . 5 . 2 . 5 Successful 11 | . 4 . 2 . 5 Failed 1 | . 1 . . . . Catastrophic . | . . . . . . Database Lockouts . | . . . . . . Manual 6 | . 3 . 1 . 2 Terminals 8 | . 5 . . . 3 Fabricators . | . . . . . . Repair Stations 2 | . . . . . 2 Recycling Units . | . . . . . . Scanalyzers . | . . . . . . Garrison Access . | . . . . . . Terminal Hacks 9 | . 4 . 2 . 3 Record 1 | . . . 1 . . Robot Analysis 1 | . 1 . . . . Prototype ID Bank 2 | . 1 . . . 1 Branch Access Points 1 | . 1 . . . . Emergency Access Points 1 | . . . . . 1 Terminal Index 1 | . 1 . . . . Maintenance Status 1 | . . . . . 1 Derelict Proto ID Bank 1 | . . . 1 . . Fabricator Hacks . | . . . . . . Repair Station Hacks 2 | . . . . . 2 Scan Component 1 | . . . . . 1 Repair 1 | . . . . . 1 Recycling Unit Hacks . | . . . . . . Scanalyzer . | . . . . . . Garrison Access Hacks . | . . . . . . Unauthorized Hacks . | . . . . . . Terminals . | . . . . . . Fabricators . | . . . . . . Repair Stations . | . . . . . . Recycling Units . | . . . . . . Scanalyzers . | . . . . . . Garrison Access . | . . . . . . Data Cores Recovered . | . . . . . . Used . | . . . . . . Hacking Detections 3 | . 1 . . . 2 Full Trace Events . | . . . . . . Feedback Events . | . . . . . . Feedback Blocked . | . . . . . . Robot Schematics Acquired . | . . . . . . Robots Built . | . . . . . . Authchips . | . . . . . . Time . | . . . . . . Total Robot Build Rating . | . . . . . . Part Schematics Acquired . | . . . . . . Parts Built . | . . . . . . Authchips . | . . . . . . Time . | . . . . . . Total Part Build Rating . | . . . . . . Parts Repaired 1 | . . . . . 1 Time 32 | . . . . . 32 Parts Recycled . | . . . . . . Recycled Matter . | . . . . . . Retrieved Matter . | . . . . . . Retrieved Components . | . . . . . . Parts Scanalyzed . | . . . . . . Part Schematics Acquired . | . . . . . . Parts Damaged . | . . . . . . Bothacking | -11 -10 -10 -10 -9 -8 ------------ Run | Yrd Mat Min Exi Min Mat Used RIF Installer . | . . . . . . Robots Hacked . | . . . . . . Non-combat . | . . . . . . Combat . | . . . . . . Robot Hacks Applied . | . . . . . . Relay Couplers Released . | . . . . . . Fabnet Peak Effective % . | . . . . . . Robots Rewired . | . . . . . . Allies Hacked . | . . . . . . Hacks Repelled . | . . . . . . Allies | -11 -10 -10 -10 -9 -8 -------- Run | Yrd Mat Min Exi Min Mat Total Allies . | . . . . . . Largest Group . | . . . . . . Highest-Rated Group . | . . . . . . Highest-Rated Ally . | . . . . . . Total Orders . | . . . . . . Ally Attacks . | . . . . . . Total Damage . | . . . . . . Kills . | . . . . . . Allies Corrupted . | . . . . . . Allies Melted . | . . . . . . Intel | -11 -10 -10 -10 -9 -8 ------- Run | Yrd Mat Min Exi Min Mat Robot Analysis Total 1 | . 1 . . . . Derelict Logs Recovered 3 | . . 2 . 1 . Drone Launches . | . . . . . . Drone Recoveries . | . . . . . . Exploration | -11 -10 -10 -10 -9 -8 ------------- Run | Yrd Mat Min Exi Min Mat Turns Passed 3024 | 93 512 1012 370 202 835 Spaces Moved 1786 | 52 256 596 308 154 420 Core 26 | 19 . 6 . . 1 Treads 774 | 33 256 411 . . 74 Legs 986 | . . 179 308 154 345 Wheels . | . . . . . . Hover . | . . . . . . Flight . | . . . . . . Fastest Speed 50 | 50 160 120 120 120 120 Average Speed 141 | 153 160 149 120 120 141 Slowest Speed 500 | 200 160 300 120 120 500 Overloaded Moves . | . . . . . . Propulsion Burnouts . | . . . . . . Robots Hopped . | . . . . . . Cave-ins Triggered . | . . . . . . Exploration Rate (%) 42 | 4 31 90 61 41 26 Regions Visited 5 Branch Regions 3 Pre-discovered Areas 2 | . . . . 2 . Known Exits Taken 1 | . 1 . . . . Unknown Exits Taken 4 | 1 . 1 1 1 . Scrap Searched 3 | . . 1 . 2 . Spaces Dug . | . . . . . . Terrain Destroyed . | . . . . . . Melee . | . . . . . . Projectile . | . . . . . . AOE . | . . . . . . Terrain Rammed . | . . . . . . Walls Destroyed . | . . . . . . Machines Disabled . | . . . . . . Actions | -11 -10 -10 -10 -9 -8 --------- Run | Yrd Mat Min Exi Min Mat Total 2080 | 62 329 659 309 161 560 Wait 120 | . 46 23 . . 51 Move 1781 | 51 255 595 307 153 420 Hop . | . . . . . . Pick Up 20 | 4 5 1 1 2 7 Fast Attach 14 | 5 3 1 . . 5 Attach 16 | 1 . 4 . . 11 Detach 4 | . 2 . . . 2 Swap 9 | 1 1 1 . . 6 Drop 11 | . 2 2 1 1 5 Fire 100 | . 15 31 . 5 49 Melee 4 | . . . . . 4 Ram 1 | . . 1 . . . Kick . | . . . . . . Crush . | . . . . . . Escape Stasis . | . . . . . . Rewire . | . . . . . . Trap . | . . . . . . Miscellaneous . | . . . . . . Route ------- -11/Scrapyard -10/Materials (discovered 2 exits: *Mat / *Min) -10/Mines (discovered 4 exits: *Mat x2 / *Exi / [*Sub]) -10/Exiles -9/Mines -8/Materials History --------- Turn | Location | Event 24 | -11/Scrapyard | Discovered new exit (range 15) 94 | -11/Scrapyard | Entered Materials 120 | -10/Materials | Identified exit to Mines 307 | -10/Materials | Build established: Mutant 514 | -10/Materials | Discovered new exit (range 3) 606 | -10/Materials | Entered Mines 1093 | -10/Mines | Identified exit to Materials 1384 | -10/Mines | Core integrity fell below 50% 1419 | -10/Mines | Lost 3 parts (1n2w) 1428 | -10/Mines | Learned Materials non-interactive machine intel 1442 | -10/Mines | Discovered exit to Materials (range 10) 1579 | -10/Mines | Discovered new exit (range 4) 1613 | -10/Mines | Deemed a non-threat by the Exiles lab entrance 1613 | -10/Mines | Discovered new exit (range 5) 1618 | -10/Mines | Entered Exiles 1650 | -10/Exiles | Met 8R-AWN 1670 | -10/Exiles | Met EX-HEX 1702 | -10/Exiles | Met EX-BIN 1719 | -10/Exiles | Aligned with FarCom system 1720 | -10/Exiles | Given EX-Vault access code 1748 | -10/Exiles | Opened EX-Vault 1795 | -10/Exiles | Warned to stay clear of 0b10 Research branches 1859 | -10/Exiles | Found 0b10 Alert Chip 1922 | -10/Exiles | Met EX-DEC 1979 | -10/Exiles | Discovered new exit (range 10) 1988 | -10/Exiles | Left Exiles lab with 0b10 Alert Chip 1988 | -10/Exiles | Entered Mines 2008 | -9/Mines | Learned location of Zion (-6) 2084 | -9/Mines | Learned location of Storage (-7) 2179 | -9/Mines | Discovered new exit (range 5) 2190 | -9/Mines | Entered Materials 2190 | -8/Materials | Evolved 4 slots: Utility x4 2191 | -8/Materials | Loaded intel: 40 non-interactive machine locations 2800 | -8/Materials | Build established: Scavenger-Skirmisher 2800 | -8/Materials | Lost 5 parts (1p1n1u2w) 2832 | -8/Materials | Repaired Hvy. Assault Rifle? 2951 | -8/Materials | Core integrity fell below 50% 2999 | -8/Materials | Core integrity fell below 20% 3025 | -8/Materials | Destroyed by G-47 Trooper with Particle Gun Last Messages --------------- 02933_ A-02 Transporter destroyed. 02934_ W-25 Informer sends out distress signal. 02946_ Aluminum Leg destroyed. 02963_ G-47 Trooper destroyed. 02968_ Acquired 95 matter. 02973_ Acquired Lgt. Treads. 02974_ Lgt. Treads destroyed. 02978_ Hacking Suite destroyed. 02981_ G-50 Soldier Hvy. Laser severed. 02984_ Penetrated by Slug. 02984_ Repair Station disabled. 02984_ Backup Propulsion I tumbles out of repair station. 02991_ Critical hit (Burn: +37). 02993_ Penetrated by Slug. 02996_ Lgt. Treads destroyed. 02999_ Penetrated by Slug. 03002_ Hvy. Assault Rifle destroyed. 03017_ Penetrated by Slug. 03020_ Acquired 8 matter. Map ----- +----------------------------------------------------+ | """ # #??????####################??# ]]#???? | | # #?????????######?# #??# !!#???? | | ##### ##???????##!! !### #??# !!#???? | | #### #########! ! !## #??# #####???? | | ## ## #??# #???????? | | T ## ## #??# #???????? | | + #??# #???????? | | #### #### ### #??# ???????? | | ##########??# """#?# #??# #???????? | | """ """ #??#![[ R"#?# #??# #???????? | | """ """ #??#![ "" #?#####+####??# #???????? | | """ """ #??#![ [=*##### #????# #???????? | | #### *!! !%![ #????+ #?????"?? | | + ! %! !! #????# #?????""? | | ######[% *##### #????# #?????""? | | #????# ########???## ##????# #????"""? | | ###+######????# #???????????# #?????+ ?????""?? | | ??????????????# ############# g#?????? ?????"""? | | ??????????????# ## * ## #?????? ?????"""? | | ?????????????? + % ##g ##????? ?#???"""? | | ??????????????#### # xgx##### #????"?? | | ????????????????#; g H #??????? | | ?????????????????# """ """ ; +??????? | | ???????"""""?????# "R """ ; ##### #??????? | | ???????"""""?????# """ """ ######???????##??????? | | ???????"""""?????# @ #????????????????????? | | ?????????????????###########????????????????????? | | ????????????????????????????????????????????????? | | ????????????????????????????????????????????????? | | ????????????????????????????????????????????????? | | ????????????????????????????????????????????????? | | ????????????????????????????????????????????????? | | ????????????????????????????????????????????????? | | ????????????????????????????????????????????????? | | ????????????????????????????????????????????????? | | ????????????????????????????????????????????????? | | ????????????????????????????????????????????????? | | ????????????????????????????????????????????????? | | ????????????????????????????????????????????????? | | ????????????????????????????????????????????????? | | ????????????????????????????????????????????????? | | ????????????????????????????????????????????????? | | | | | | | | | | | | | | | | | +----------------------------------------------------+ Best States ------------- Heat Dissipation 31 Energy Generation 14 Energy Capacity 250 Matter Stores 300 Matter Capacity 300 Sight Range 20 Terrain Scan Density 10 Evasion (%) 55 Melee Accuracy 5 Recoil Reduction 2 Offensive Hacking 20 Trap Extractor Capacity 4 Item Schematics ----------------- None Robot Schematics ------------------ None Fabricated ------------ Nothing Alien Tech Used ----------------- None Achievements -------------- None Challenges ------------ None Game ------ Seed DroneSignalArray Manual? 0 Play Time 00:27:38 Cumulative 42.7 hours Start 2024.04.27 @ 21:08:33 End 2024.04.27 @ 21:34:30 Sessions 1 Manual Loads 0 Difficulty Rogue Special Mode None Game No. 68 Rogue 68 Adventurer 0 Explorer 0 Win Type - Total 0 Types 0/0/0/0/0/0/0/0/0 Lore% 22 Gallery% 30 Achievement% 25 Wizard Run 0 Options --------- Layout 1 ASCII 0 Keyboard 1 Movement Numpad Keybinds 0 Fullscreen 1 Font 24/Smallcaps Map View 50x35 Zoom Use 0% Tactical HUD 1 Map Filters NONE Filters NONE Steam 1 RUN: 9b533022-7a9b-4b12-8376-321544034335